{"text_format":"1","workbook":"xlsx","n_sheets":2,"sheets":["Order Form","Other"],"not_rendered":{"charts":0,"images":8,"macros":1,"external_links":0,"defined_names":1,"comments":0,"pivot_tables":0},"unopened":[],"bounds":{"document_bytes":16777216,"sheet_cells":100000,"rows_first":2000,"rows_last":500,"rows_between":2000,"halvings":0,"cell_chars":16384,"cell_head_chars":4096},"cells_cut":0,"cells_raw":0,"read":"whole","date_system":"1900"}

{"sheet":"Order Form","index":0,"n_rows":293,"n_cols":9,"rows_kept":293,"cut":false,"hidden":false,"merged":[[279,0,280,8],[287,0,288,8],[293,0,294,8],[255,0,257,8],[206,0,208,8],[217,0,218,8],[227,0,228,8],[236,0,237,8],[7,1,7,3],[7,5,7,7],[6,1,6,3],[8,5,8,7],[13,5,13,7],[12,5,12,7],[8,1,8,3],[9,1,9,3],[9,6,9,7],[11,1,11,3],[10,1,10,3],[12,1,14,3],[89,5,89,6],[98,0,99,4],[72,5,73,6],[72,1,73,4],[130,1,133,7],[102,3,102,5],[114,1,114,3],[116,1,116,3],[103,1,107,7],[110,0,110,8],[124,5,124,7],[119,1,119,3],[124,1,124,3],[114,5,114,6],[116,4,116,5],[75,4,76,8],[75,0,76,3],[77,3,78,5],[79,1,83,7],[23,6,23,7],[42,7,44,8],[39,7,41,8],[49,5,51,8],[55,5,57,8],[24,6,24,7],[24,2,24,3],[23,2,23,3],[30,0,34,8],[0,2,0,8],[68,1,69,4],[70,1,71,4],[68,5,69,6],[70,5,71,6],[66,0,66,8],[24,4,24,5],[24,0,24,1],[27,0,29,8],[23,0,23,1],[59,1,63,7],[17,0,19,8],[20,0,21,8],[23,4,23,5],[1,2,1,8],[2,2,2,8],[191,0,192,8],[181,0,182,8],[174,2,174,3],[172,2,172,3],[196,1,196,8],[120,1,120,3],[151,0,151,1],[169,0,170,8],[159,0,159,1],[154,0,157,8],[153,0,153,1],[152,0,152,1],[137,1,142,7]]}
[]
[null,null,"Offertformulär avseende inhyrning av personal(förberedande & icke bindande)"]
[null,null,"Order form regarding the hiring of personnel (preparatory & non-binding)"]
[]
["Inhyrande företag – Mottagare / Hiring company - Beneficiary"]
[]
[null,"Inhyrande företag / Hiring company *",null,null,null,"Organisationsnummer / Organization number *"]
[]
[null,"Företagets kontaktperson / The company`s contact person *",null,null,null,"Telefon oche-post / Phone *"]
[null,null,null,null,null,"+46"]
[]
[null,"Företagens adress / Address"]
[null,null,null,null,null,"E - post / E-mail *"]
[]
[]
[]
[]
["Bästa Mottagare, Vi arbetar snabbt och effektivt för att säkerställa ett urval av marknadens bästa medarbetare. För att kunna nå ett ansenligt resultat, ber vi Er vänligen fylla i detta förberedande beställningsformulär fullständigt och returnera den till oss snarast. Tack!"]
[]
[]
["Dear recipient! We work quickly and efﬁciently to ensure a selection of the market's best employees. In order to achieve a signiﬁcant result, please ﬁll out this preliminary order form completely and return it to us as soon as possible. Thanks!)"]
[]
[]
["Befattnig / Job title *",null,"Ange annan befattning / Input other Job title",null,"Antal\n/ Number of Employees *",null,"Datum skapad\n/ Date *",null,"Ordernummer\n/ Order number *"]
[null,null,null,null,"Choose"]
[]
[]
["Beskrivning av uppdraget omfattning och specifikationer: (beskriv om arbetet gäller produktion, industrianläggning, byggverksamhet, inomhus, utomhus mm.) / Description of the assignment, scope, and speciﬁcations: (industrial plant, construction, indoors, outdoors, etc.)"]
[]
[]
[]
[]
[]
[]
[]
[]
["       Ev. specifik kompetens/erfarenhet / Specific skills/experience :"]
[]
[" Krav på utbildning eller likvärdig / Requirements for education or equivalent:"]
[]
[null,null,null,null,null,null,"Other:"]
[]
["Övriga krav på utbildning / Other requirements for education:"]
[null,null,null,null,null,null,"Other:"]
[]
[]
[]
[]
[]
["  Krav på B-körkort  / Requirement for B driver's license:"]
[null,null,null,null,"Notes:"]
[]
[]
[]
["Krav på Språk / Language requirements: "]
[]
[null,null,null,null,"Other:"]
[]
[null,null,null,null,"Anteckningar / Notes:"]
[]
[]
[]
[]
[]
[]
[]
["      Utrustning och arbetskläder, boende / Equipment and work clothes, accommodation:"]
[]
[null,"Arbetskläder tillhandahålls av \n/ Work clothes are provided by:"]
[]
[null,"Verktyg och övriga utrustning tillhandahålls av / Tools and other equipment are provided by:"]
[]
[null,"Boende tillhandahålls av \n/ Accommodation provided by:"]
[]
[]
["Uppdragets ort/stad / Place/city of the assignment:"]
[]
[null,null,null,"Anteckningar / Notes:"]
[]
[]
[]
[]
[]
[]
[]
[]
[]
["      Timpris / Hourly rate:"]
[]
[null,null,"Timpris / Hourly price per hour:",null,null,null,null,"SEK"]
[]
[]
[]
[]
[]
[]
[]
[]
["Milersättning och eventuella parkeringsavgifter ersättas av                         / Mileage allowance and any parking fees are replaced by:"]
[]
[]
[]
[null,null,null,"Anteckningar / Notes:"]
[]
[]
[]
[]
[]
[]
[]
[]
["       Arbetsperiod, arbetstid, övertidsarbete, arbetsrotation\n"]
["       Working period, working hours, overtime work, work rotation:"]
[]
[null,"Arbetsperiod / Working period: ",null,null," From:",null,null," Till:"]
[]
[null,"Arbetstid / Working hours:",null,null,"-",null,null,"Other:"]
[]
[]
[]
[null,"Arbetsrotation / Working rotation:"]
[]
[]
[]
[null,"Övertidsarbete / Overtime work: "]
[]
[null," Vilka dagar / What days:"]
[]
[]
[null,null,null,null,"Anteckningar / Notes:"]
[]
[]
[]
[]
[]
[]
[null,"Övrigt / Miscellaneous:"]
[]
[]
[]
[]
[]
[]
[]
[]
[]
[]
[]
[null,"Order form regarding the hiring of personnel (preparatory & non-binding)"]
["Welder"]
["What sites/projects are expected? Type? "]
["               Factories"]
["               Construction"]
["               Manufacturing"]
["Description of the assignment, scope, and specifications: (industrial plant, construction, indoors, outdoors, etc.)"]
[]
[]
[]
[]
["Number of workers:"]
[]
["Method of Welding:"]
[]
["            111 - Metal arc welding, pin. ",null,null,null,null,"138 - Tube wire metal powder filled "]
["            131 – MiG",null,null,null,null,"141 – TIG"]
["            135 - Mag with homogeneous thread",null,null,null,null,"311 – GAS "]
["            136 - Pipe wire",null,null,null,null,"Assembling"]
[]
["Other:"]
[]
[]
[]
["Material thickness"]
[]
["Material diameter"]
["           "]
["What kind of job needs to be done? Describe job specification (what materials used, and skills needed):"]
[]
["             Mechanical engineering",null,null,null,null,"Metal constructions / Installation"]
["             BIG capacities (Tanks)",null,null,null,null,"Pipes"]
["Other:"]
[]
[]
[]
["What welding quality class is for that work?"]
[]
["               A class",null,"           B class",null,"           C class",null,null,"           D class"]
[]
["Welding material?"]
[null,"Stainless Steel",null,null,"Black Steel"]
["Other:"]
[]
[]
[]
["Drawings? Should they read Drawings"]
["                  Isometric Drawings (3D",null,null,null,null,"Drawings "]
["Other:"]
[]
[null,"Order form regarding the hiring of personnel (preparatory & non-binding)"]
[]
["Electrician:"]
[]
["What sites/projects are expected? Type? "]
[]
[null,"Factories",null,null,"Construction",null,null,null,"Manufacturing"]
[]
["Description of the assignment, scope, and specifications: (industrial plant, construction, indoors, outdoors, etc.)"]
[]
[]
[]
["What types of work need to do?:"]
[]
[null,"installation of cable ladders",null,null,null,null,null,"internet cable system"]
[null,"installation of cable channels                 ",null,null,null,null,null,"fire system cable"]
[null,"high voltage cabling (up to 1000 V)",null,null,null,null,null,"other"]
[]
["Other:"]
[]
[]
[]
["What types of project?:"]
[]
[null,"internal El. Work",null,null,null,null,"High voltage work"]
[null,"Assembly of El. Boxes, connections             ",null,null,null,null,"Other type"]
[null,"Low voltage work"]
[]
["Other:"]
[]
[]
[]
["Should workers assemble switchboards?",null,null,null,"Yes"]
[null,null,null,null,"No"]
[]
["Any useful information more?"]
[]
["Info:"]
[]
[]
[]
[]
[]
[]
[]
[]
[]
[]
[]
[]
[null,"Order form regarding the hiring of personnel (preparatory & non-binding)"]
[]
["Sandblaster:"]
[]
["What sites/projects are expected? Type? "]
[]
[null,"Factories",null,"Construction",null,"Manufacturing",null,null,"Stock"]
["Description of the assignment, scope, and specifications: (industrial plant, construction, indoors, outdoors, etc.)"]
[]
[]
[]
["What types of work need to do?:"]
[]
[null,"Painting:",null,null,null,null,"Blasting:"]
[]
[null,"All rust classes (ISO 12944) from C1 to C5",null,null,null,null,"All classes from Sa1 to Sa3 (Iso 8501-1)"]
[null,"All shapes and types of painted goods",null,null,null,null,"All shapes and types of blasted goods"]
[null,"Simple shapes",null,null,null,null,"Steel"]
[null,"All color systems",null,null,null,null,"All rust classes from A to D (ISO 8501-1)"]
[null,"Industry system",null,null,null,null,"Standard material (sand, etc.)"]
[null,"Just primer",null,null,null,null,"Can repair equipment"]
[null,"Demand thickness",null,null,null,null,"Demanded efficiency"]
[null,"Required thickness",null,null,null,null,"Blasting during training programs"]
[null,"Can prepare (mix) color"]
[null,"Preparation of inaccessible places with brush"]
[null,"Control of wet and dry paint thickness"]
[null,"Calibration ac control tool"]
[null,"Visual finishing"]
[null,"Industry finishing"]
[]
["Other:"]
[]
[]
[]
["What types of project?:"]
[]
[null,"Outer works (outside)",null,null,null,"Inside works   "]
[]
["Other:"]
[]
[]
[]
["Any useful information more?"]
[]
["Info:"]

{"sheet":"Other","index":1,"n_rows":168,"n_cols":5,"rows_kept":168,"cut":false,"hidden":true,"merged":[]}
["Vacancies","Number","Time","Currency","Code"]
["Welder","Choose","40 hours ","SEK","+372"]
["Electrician",1,"50 hours","EURO","+46"]
["Sandblaster / Industrial Painter",{"$f":"SUM(B3+1)","v":2},"56 hours","NOK","+358"]
["Other",{"$f":"SUM(B4+1)","v":3},"-","USD","+47"]
[null,4]
[null,5]
[null,6]
[null,7]
[null,8]
[null,9]
[null,10]
[null,11]
[null,12]
[null,13]
[null,14]
[null,15]
[null,16]
[null,17]
[null,18]
[null,19]
[null,20]
[null,21]
[null,22]
[null,23]
[null,24]
[null,25]
[null,26]
[null,27]
[null,28]
[null,29]
[null,30]
[null,31]
[null,32]
[null,33]
[null,34]
[null,35]
[null,36]
[null,37]
[null,38]
[null,39]
[null,40]
[null,41]
[null,42]
[null,43]
[null,44]
[null,45]
[null,46]
[null,47]
[null,48]
[null,49]
[null,50]
[null,51]
[null,52]
[null,53]
[null,54]
[null,55]
[null,56]
[null,57]
[null,58]
[null,59]
[null,60]
[null,61]
[null,62]
[null,63]
[null,64]
[null,65]
[null,66]
[null,{"$f":"SUM(B68+1)","v":67}]
[null,68]
[null,69]
[null,70]
[null,71]
[null,72]
[null,73]
[null,74]
[null,75]
[null,76]
[null,77]
[null,78]
[null,79]
[null,80]
[null,81]
[null,82]
[null,83]
[null,84]
[null,85]
[null,86]
[null,87]
[null,88]
[null,89]
[null,90]
[null,91]
[null,92]
[null,93]
[null,94]
[null,95]
[null,96]
[null,97]
[null,98]
[null,99]
[null,100]
[null,101]
[null,102]
[null,103]
[null,104]
[null,105]
[null,106]
[null,107]
[null,108]
[null,109]
[null,110]
[null,111]
[null,112]
[null,113]
[null,114]
[null,115]
[null,116]
[null,117]
[null,118]
[null,119]
[null,120]
[null,121]
[null,122]
[null,123]
[null,124]
[null,125]
[null,126]
[null,127]
[null,128]
[null,129]
[null,130]
[null,{"$f":"SUM(B132+1)","v":131}]
[null,132]
[null,133]
[null,134]
[null,135]
[null,136]
[null,137]
[null,138]
[null,139]
[null,140]
[null,141]
[null,142]
[null,143]
[null,144]
[null,145]
[null,146]
[null,147]
[null,148]
[null,149]
[null,150]
[null,151]
[null,152]
[null,153]
[null,154]
[null,155]
[null,156]
[null,157]
[null,158]
[null,159]
[null,160]
[null,161]
[null,162]
[null,163]
[null,164]
[null,165]
[null,166]